[Event "Mitropa Cup Women 2024"]
[Site "Apolda"]
[Date "2024.02.19"]
[Round "5.11"]
[White "Lhotska, Anna"]
[Black "Hryzlova, Sofiia"]
[Result "0-1"]
[ECO "C11"]
[WhiteElo "2053"]
[BlackElo "2196"]
[Annotator "RC"]
[PlyCount "60"]
[EventDate "2024.02.15"]
[EventType "team-tourn"]
[EventCountry "GER"]
[SourceTitle "playchess.com"]
[Source "ChessBase"]
[SourceQuality "1"]
[WhiteTeam "Czech Republic"]
[BlackTeam "Switzerland"]
[WhiteTeamCountry "CZE"]
[BlackTeamCountry "SUI"]
[TimeControl "40/5400+30:1800+30"]

1. e4 {[%emt 0:00:03]} e6 {[%emt 0:00:08]} 2. d4 {[%emt 0:00:32]} d5 {[%emt 0:00:07]} 3. Nc3 {[%emt 0:00:08]} Nf6 {[%emt 0:00:10]} 4. e5 {[%emt 0:00:12]} Nfd7 {[%emt 0:00:05]} 5. f4 {[%emt 0:00:09]} c5 {[%emt 0:00:07]} 6. Nf3 {[%emt 0:00:06]} Nc6 {[%emt 0:00:06]} 7. Be3 {[%emt 0:00:14]} a6 {[%emt 0:00:10]} 8. Qd2 {[%emt 0:00:39]} b5 {[%emt 0:00:14]} 9. Be2 {[%emt 0:00:36]} Qb6 {[%emt 0:00:17]} 10. Nd1 {[%emt 0:01:07]} cxd4 {[%emt 0:00:28]} 11. Nxd4 {[%emt 0:00:40]} Bc5 {[%emt 0:00:23]} 12. c3 {[%emt 0:00:52]} O-O {[%emt 0:00:14]} 13. O-O {[%emt 0:01:39]} a5 {[%emt 0:00:26]} 14. Nxb5 {[%emt 0:15:28]} Ba6 {[%emt 0:00:12]} 15. a4 {[%emt 0:00:35]} Rab8 {[%emt 0:00:07]} 16. Kh1 {[%emt 0:07:54]} Bxe3 {[%emt 0:01:26]} 17. Qxe3 {[%emt 0:04:20]} Nc5 {[%emt 0:00:17]} 18. Nd6 {[%emt 0:12:47]} Nb3 {[%emt 0:08:42]} 19. Bxa6 {[%emt 0:04:29]} Qxa6 {[%emt 0:02:00]} 20. Nf2 {[%emt 0:02:10]} Nxa1 {[%emt 0:01:15]} 21. Rxa1 {[%emt 0:00:05]} Rxb2 {[%emt 0:20:32]} 22. Nb5 {[%emt 0:14:38]} Rb8 {[%emt 0:07:09]} 23. Qg3 {[%emt 0:04:17]} Ne7 {[%emt 0:04:49]} 24. Nd3 {[%emt 0:04:59]} Nf5 {[%emt 0:06:15]} 25. Qf3 {[%emt 0:01:43]} Rd2 {[%emt 0:06:54]} 26. Nc5 {[%emt 0:11:47]} Qc6 {[%emt 0:01:12]} 27. Nb3 {[%emt 0:00:22]} Rb2 {[%emt 0:00:38]} 28. Nc1 {[%emt 0:04:34]} Nh4 {[%emt 0:02:40]} 29. Qg4 {[%emt 0:00:06]} Qc4 {[%emt 0:00:32]} 30. Qxh4 {[%emt 0:03:02]} Qf1# {[%emt 0:00:07]} 0-1

[Event "Mitropa Cup Women 2024"]
[Site "Apolda"]
[Date "2024.02.19"]
[Round "5.12"]
[White "Pellicoro, Nathalie"]
[Black "Rybackova, Lucie"]
[Result "1/2-1/2"]
[ECO "B12"]
[WhiteElo "1905"]
[BlackElo "1970"]
[Annotator "NA RC"]
[PlyCount "82"]
[EventDate "2024.02.15"]
[EventType "team-tourn"]
[EventCountry "GER"]
[SourceTitle "playchess.com"]
[Source "ChessBase"]
[SourceQuality "1"]
[WhiteTeam "Switzerland"]
[BlackTeam "Czech Republic"]
[WhiteTeamCountry "SUI"]
[BlackTeamCountry "CZE"]
[TimeControl "40/5400+30:1800+30"]

1. e4 {[%emt 0:00:06]} c6 {[%emt 0:00:09]} 2. d4 {[%emt 0:00:07]} d5 {[%emt 0:00:07]} 3. e5 {[%emt 0:00:10]} Bf5 {[%emt 0:00:11]} 4. h4 {[%emt 0:01:17]} h5 {[%emt 0:00:09]} 5. Bd3 {[%emt 0:00:08]} Bxd3 {[%emt 0:00:08]} 6. Qxd3 {[%emt 0:00:11]} Qa5+ {[%emt 0:00:10]} 7. Nd2 {[%emt 0:01:03]} e6 {[%emt 0:00:20]} 8. Ne2 {[%emt 0:03:58]} Ne7 {[%emt 0:00:24]} 9. O-O {[%emt 0:02:45]} Nf5 {[%emt 0:00:29]} 10. g3 {[%emt 0:03:18]} Be7 {[%emt 0:01:00]} 11. b3 {[%emt 0:04:35]} O-O {[%emt 0:00:45]} 12. Nf4 {[%emt 0:00:57]} g6 {[%emt 0:00:34]} 13. Nf3 {[%emt 0:02:08]} Qa6 {[%emt 0:06:07]} 14. c4 {[%emt 0:01:07]} Nd7 {[%emt 0:01:11]} 15. Bb2 {[%emt 0:13:05]} Rfd8 {[%emt 0:03:29]} 16. Rfc1 {[%emt 0:11:16]} Rac8 {[%emt 0:03:13]} 17. Qc2 {[%emt 0:03:37]} b6 {[%emt 0:13:12]} 18. a4 {[%emt 0:07:03]} Bb4 {[%emt 0:07:22]} 19. Nd3 {[%emt 0:05:08]} c5 {[%emt 0:21:05]} 20. Kg2 {[%emt 0:08:35]} Qb7 {[%emt 0:05:12]} 21. Qe2 {[%emt 0:04:20]} Nf8 {[%emt 0:06:24]} 22. Kh2 {[%emt 0:02:48]} dxc4 {[%emt 0:02:23]} 23. Rxc4 {[%emt 0:02:59]} a5 {[%emt 0:01:04]} 24. Nxb4 {[%emt 0:01:49]} cxb4 {[%emt 0:00:45]} 25. Rac1 {[%emt 0:00:20]} Rxc4 {[%emt 0:01:47]} 26. Rxc4 {[%emt 0:01:34]} Rc8 {[%emt 0:01:18]} 27. Ng5 {[%emt 0:02:56]} Nh7 {[%emt 0:02:41]} 28. Ne4 {[%emt 0:00:53]} Rxc4 {[%emt 0:03:35]} 29. bxc4 {[%emt 0:00:04]} Qc6 {[%emt 0:00:31]} 30. Qc2 {[%emt 0:01:55]} Nf8 {[%emt 0:04:58]} 31. Nf6+ {[%emt 0:00:26]} Kg7 {[%emt 0:00:29]} 32. Qb3 {[%emt 0:00:47]} Nd7 {[%emt 0:05:39]} 33. d5 {[%emt 0:00:53]} Qc8 {[%emt 0:00:47]} 34. Nxd7 {[%emt 0:07:35]} Qxd7 {[%emt 0:00:07]} 35. d6 {[%emt 0:00:26]} Kf8 {[%emt 0:04:04]} 36. Bc1 {[%emt 0:02:48]} Qc6 {[%emt 0:00:27]} 37. Qd3 {[%emt 0:02:17]} Ke8 {[%emt 0:00:26]} 38. Be3 {[%emt 0:02:02]} Kd7 {[%emt 0:01:05]} 39. Bd4 {[%emt 0:01:44]} Kd8 {[%emt 0:03:34]} 40. Be3 {[%emt 0:00:36]} Kd7 {[%emt 0:01:00]} 41. Bd4 {[%emt 0:05:43]} Kd8 {[%emt 0:14:55]} 1/2-1/2

[Event "Mitropa Cup Women 2024"]
[Site "Apolda"]
[Date "2024.02.19"]
[Round "5.13"]
[White "Brunello, Marina"]
[Black "Polterauer, Chiara"]
[Result "1-0"]
[ECO "C54"]
[WhiteElo "2345"]
[BlackElo "2189"]
[Annotator "RC"]
[PlyCount "171"]
[EventDate "2024.02.15"]
[EventType "team-tourn"]
[EventCountry "GER"]
[SourceTitle "playchess.com"]
[Source "ChessBase"]
[SourceQuality "1"]
[WhiteTeam "Italy"]
[BlackTeam "Austria"]
[WhiteTeamCountry "ITA"]
[BlackTeamCountry "AUT"]
[TimeControl "40/5400+30:1800+30"]

1. e4 {[%emt 0:00:04]} e5 {[%emt 0:00:05]} 2. Nf3 {[%emt 0:00:04]} Nc6 {[%emt 0:00:05]} 3. Bc4 {[%emt 0:00:07]} Bc5 {[%emt 0:00:08]} 4. d3 {[%emt 0:00:25]} Nf6 {[%emt 0:00:17]} 5. c3 {[%emt 0:00:04]} d6 {[%emt 0:00:22]} 6. Bb3 {[%emt 0:00:19]} a6 {[%emt 0:00:24]} 7. Nbd2 {[%emt 0:01:26]} Ba7 {[%emt 0:00:44]} 8. Nf1 {[%emt 0:01:26]} h6 {[%emt 0:02:14]} 9. Ng3 {[%emt 0:00:37]} O-O {[%emt 0:00:37]} 10. O-O {[%emt 0:04:03]} Re8 {[%emt 0:02:58]} 11. h3 {[%emt 0:03:29]} Be6 {[%emt 0:01:53]} 12. Bc2 {[%emt 0:00:11]} d5 {[%emt 0:09:03]} 13. exd5 {[%emt 0:14:40]} Qxd5 {[%emt 0:12:12]} 14. Be3 {[%emt 0:03:49]} Qd6 {[%emt 0:11:31]} 15. Nh4 {[%emt 0:05:18]} Qd7 {[%emt 0:11:41]} 16. Qf3 {[%emt 0:04:41]} Bd5 {[%emt 0:00:47]} 17. Ne4 {[%emt 0:00:21]} Nxe4 {[%emt 0:03:40]} 18. dxe4 {[%emt 0:00:06]} Be6 {[%emt 0:00:12]} 19. Rfd1 {[%emt 0:11:40]} Qe7 {[%emt 0:02:57]} 20. Nf5 {[%emt 0:00:49]} Bxf5 {[%emt 0:00:28]} 21. exf5 {[%emt 0:00:08]} Bxe3 {[%emt 0:01:07]} 22. fxe3 {[%emt 0:03:58]} Rad8 {[%emt 0:10:19]} 23. Be4 {[%emt 0:05:39]} Qf6 {[%emt 0:00:45]} 24. b4 {[%emt 0:04:20]} Ne7 {[%emt 0:11:08]} 25. Bxb7 {[%emt 0:02:30]} Nxf5 {[%emt 0:00:13]} 26. Rf1 {[%emt 0:05:28]} Rb8 {[%emt 0:00:39]} 27. Bd5 {[%emt 0:03:25]} Red8 {[%emt 0:06:05]} 28. Bb3 {[%emt 0:04:02]} Nd6 {[%emt 0:02:57]} 29. Qxf6 {[%emt 0:00:34]} gxf6 {[%emt 0:00:05]} 30. Rxf6 {[%emt 0:00:04]} Kg7 {[%emt 0:00:06]} 31. Raf1 {[%emt 0:01:17]} Rd7 {[%emt 0:00:54]} 32. Bd5 {[%emt 0:02:33]} Rc8 {[%emt 0:01:16]} 33. Bc6 {[%emt 0:04:54]} Re7 {[%emt 0:00:08]} 34. e4 {[%emt 0:02:39]} Rd8 {[%emt 0:04:32]} 35. a4 {[%emt 0:01:28]} Re6 {[%emt 0:00:24]} 36. Rxe6 {[%emt 0:00:56]} fxe6 {[%emt 0:00:05]} 37. a5 {[%emt 0:00:16]} Rb8 {[%emt 0:01:25]} 38. Rd1 {[%emt 0:01:26]} Kf6 {[%emt 0:00:36]} 39. Kf2 {[%emt 0:01:49]} Ke7 {[%emt 0:00:34]} 40. Ke2 {[%emt 0:00:18]} h5 {[%emt 0:01:47]} 41. g3 {[%emt 0:10:35]} Rg8 {[%emt 0:03:07]} 42. Rd3 {[%emt 0:00:48]} Rf8 {[%emt 0:00:06]} 43. Rf3 {[%emt 0:01:24]} Rb8 {[%emt 0:04:35]} 44. Kd3 {[%emt 0:03:02]} Nb5 {[%emt 0:02:19]} 45. Kc4 {[%emt 0:00:39]} Kd6 {[%emt 0:01:00]} 46. Bxb5 {[%emt 0:00:10]} axb5+ {[%emt 0:04:57]} 47. Kd3 {[%emt 0:01:48]} c5 {[%emt 0:03:32]} 48. Rf2 {[%emt 0:04:13]} cxb4 {[%emt 0:01:53]} 49. cxb4 {[%emt 0:00:04]} Rg8 {[%emt 0:00:06]} 50. Rg2 {[%emt 0:00:08]} Rc8 {[%emt 0:02:58]} 51. a6 {[%emt 0:02:42]} Ra8 {[%emt 0:01:14]} 52. Ra2 {[%emt 0:00:31]} Ra7 {[%emt 0:00:05]} 53. g4 {[%emt 0:01:15]} hxg4 {[%emt 0:00:06]} 54. hxg4 {[%emt 0:00:06]} Ke7 {[%emt 0:02:47]} 55. Ra5 {[%emt 0:01:28]} Kf6 {[%emt 0:00:13]} 56. Ke3 {[%emt 0:00:15]} Kg5 {[%emt 0:01:10]} 57. Kf3 {[%emt 0:00:24]} Kf6 {[%emt 0:02:04]} 58. Kg3 {[%emt 0:00:06]} Kg6 {[%emt 0:00:26]} 59. Rxb5 {[%emt 0:00:27]} Rxa6 {[%emt 0:00:05]} 60. Rxe5 {[%emt 0:00:05]} Kf6 {[%emt 0:00:35]} 61. Kf4 {[%emt 0:00:14]} Ra1 {[%emt 0:00:46]} 62. g5+ {[%emt 0:00:17]} Ke7 {[%emt 0:00:33]} 63. Rb5 {[%emt 0:01:47]} Rg1 {[%emt 0:00:38]} 64. Rb6 {[%emt 0:00:27]} Kd7 {[%emt 0:01:12]} 65. b5 {[%emt 0:00:54]} Ke7 {[%emt 0:00:57]} 66. Rb8 {[%emt 0:00:39]} Kd6 {[%emt 0:02:16]} 67. Rd8+ {[%emt 0:01:28]} Ke7 {[%emt 0:00:35]} 68. Ra8 {[%emt 0:00:27]} Kd6 {[%emt 0:01:18]} 69. Ra6+ {[%emt 0:00:19]} Ke7 {[%emt 0:01:03]} 70. Ra7+ {[%emt 0:00:04]} Kd6 {[%emt 0:01:48]} 71. e5+ {[%emt 0:00:20]} Kc5 {[%emt 0:01:27]} 72. Rc7+ {[%emt 0:01:31]} Kxb5 {[%emt 0:00:49]} 73. Re7 {[%emt 0:00:04]} Rf1+ {[%emt 0:00:13]} 74. Kg4 {[%emt 0:00:03]} Kc5 {[%emt 0:00:14]} 75. Rxe6 {[%emt 0:00:09]} Kd5 {[%emt 0:00:05]} 76. Re8 {[%emt 0:01:05]} Ke4 {[%emt 0:00:34]} 77. Kh5 {[%emt 0:00:20]} Ra1 {[%emt 0:01:00]} 78. Kh6 {[%emt 0:00:37]} Kf5 {[%emt 0:00:17]} 79. Rf8+ {[%emt 0:00:15]} Kxe5 {[%emt 0:01:06]} 80. g6 {[%emt 0:00:17]} Ke6 {[%emt 0:00:33]} 81. Kh7 {[%emt 0:00:34]} Ke7 {[%emt 0:00:53]} 82. Rf4 {[%emt 0:00:44]} Rg1 {[%emt 0:00:29]} 83. g7 {[%emt 0:00:20]} Rh1+ {[%emt 0:00:09]} 84. Kg8 {[%emt 0:00:13]} Ra1 {[%emt 0:00:47]} 85. Rh4 {[%emt 0:01:09]} Rg1 {[%emt 0:01:54]} 86. Kh8 {[%emt 0:00:13]} 1-0

[Event "Mitropa Cup Women 2024"]
[Site "Apolda"]
[Date "2024.02.19"]
[Round "5.14"]
[White "Hapala, Elisabeth"]
[Black "Zimina, Olga"]
[Result "0-1"]
[ECO "B19"]
[WhiteElo "2001"]
[BlackElo "2291"]
[Annotator "TA"]
[PlyCount "142"]
[EventDate "2024.02.15"]
[EventType "team-tourn"]
[EventCountry "GER"]
[SourceTitle "playchess.com"]
[Source "ChessBase"]
[SourceQuality "1"]
[WhiteTeam "Austria"]
[BlackTeam "Italy"]
[WhiteTeamCountry "AUT"]
[BlackTeamCountry "ITA"]
[TimeControl "40/5400+30:1800+30"]

{[%evp 22,142,3,0,6,0,0,-12,-16,-44,-32,-40,-49,-52,-51,-126,-52,-49,-57,-143,-145,-135,-130,-137,-111,-125,-115,-116,-105,-115,-100,-109,-102,-103,-104,-101,-94,-131,-130,-134,-133,-131,-118,-205,-191,-188,-171,-177,-161,-162,-160,-231,-141,-368,-368,-364,-360,-358,-347,-357,-345,-358,-347,-329,-326,-332,-430,-430,-430,-459,-427,-474,-408,-443,-342,-375,-369,-367,-388,-375,-354,-315,-364,-408,-382,-752,-683,-278,0,-606,-472,-29970,-29963,-29972,-29973,-29977,-29978,-29977,-29978,-29983,-29984,-29987,-29986,-29986,-29987,-29987,-29982,-29982,-29983,-29984,-29985,-29984,-29985,-29990,-29991,-29991,-29992,-29992,-29993,-29995,-29991,-29992,-29993]} 1. e4 {[%emt 0:00:01]} c6 {[%emt 0:00:15]} 2. d4 {[%emt 0:00:05]} d5 {[%emt 0:00:03]} 3. Nc3 {[%emt 0:00:10]} dxe4 {[%emt 0:00:08]} 4. Nxe4 {[%emt 0:00:04]} Bf5 {[%emt 0:00:58]} 5. Ng3 {[%emt 0:00:06]} Bg6 {[%emt 0:00:03]} 6. Nf3 {[%emt 0:00:08]} e6 {[%emt 0:00:04]} 7. h4 {[%emt 0:09:19]} h6 {[%emt 0:00:05]} 8. Ne5 {[%emt 0:00:17]} Bh7 {[%emt 0:00:05]} 9. Bc4 {[%emt 0:06:18]} Nd7 {[%emt 0:03:37]} 10. Bf4 {[%emt 0:03:20]} Nxe5 {[%emt 0:00:48]} 11. Bxe5 {[%emt 0:02:19]} Nf6 {[%emt 0:06:20]} 12. Qe2 {[%emt 0:04:31]} Qa5+ {[%emt 0:02:32]} 13. c3 {[%emt 0:00:49]} Nd7 {[%emt 0:13:50]} 14. O-O-O {[%emt 0:18:47]} O-O-O $1 {[%emt 0:03:11]} 15. Bb3 {[%emt 0:09:36]} Ba3 {[%emt 0:18:49]} 16. Qf3 $1 {[%emt 0:09:23]} Nxe5 {[%emt 0:01:27]} 17. dxe5 {[%emt 0:00:06]} Be7 {[%emt 0:01:24]} 18. Qe3 {[%emt 0:10:50]} (18. Qxf7 $2 Qxc3+ 19. bxc3 Ba3#) (18. Ne2 $15 Rhf8 (18... Qxe5 19. Qxf7 Rxd1+ 20. Kxd1 $11) 19. Rxd8+ Bxd8 (19... Rxd8 20. Qxf7 Bc5 21. Rd1 $18) (19... Kxd8 20. Qg3 $11) 20. Qg3) 18... Rxd1+ {[%emt 0:03:34]} (18... g5 $1 $17 19. hxg5 Bxg5) 19. Rxd1 $15 {[%emt 0:00:17]} Bxh4 {[%emt 0:00:31]} (19... Qb6 {simplifies} 20. Qxb6 axb6 21. Rd4 g5) 20. Qd4 {[%emt 0:01:07]} (20. Ne4 $15 Bxe4 (20... Qxe5 $2 {too greedy.} 21. Nd6+ $18) 21. Qxe4) 20... Bg5+ $17 {[%emt 0:00:32]} 21. f4 {[%emt 0:00:09]} Rd8 {[%emt 0:00:19]} 22. Qe3 {[%emt 0:00:37]} Qb6 {[%emt 0:07:10]} 23. Qf3 {[%emt 0:03:41]} Rxd1+ {[%emt 0:03:57]} 24. Bxd1 {[%emt 0:00:14]} Be7 {[%emt 0:00:16]} 25. Bc2 {[%emt 0:01:15]} Qg1+ {[%emt 0:01:20]} (25... Bxc2 {simplifies} 26. Kxc2 Qa5 27. a3 Qa4+) 26. Kd2 {[%emt 0:00:33]} Bxc2 {[%emt 0:01:30]} 27. Kxc2 {[%emt 0:00:03]} Qc5 {[%emt 0:02:09]} 28. Ne4 {[%emt 0:05:00]} Qd5 {[%emt 0:00:12]} 29. a3 {[%emt 0:00:46]} Kc7 {[%emt 0:12:08]} 30. Qe3 {[%emt 0:01:07]} a5 {[%emt 0:05:43]} 31. Qf3 {[%emt 0:02:23]} a4 {[%emt 0:00:40]} 32. Kc1 {[%emt 0:00:18]} (32. Qd3 $17) 32... f5 {[%emt 0:03:26]} 33. exf6 {[%emt 0:00:31]} gxf6 {[%emt 0:00:27]} ({Much less strong is} 33... Bxf6 34. Qe2) 34. Qe2 {[%emt 0:01:53]} h5 {[%emt 0:03:50]} 35. g3 {[%emt 0:00:40]} Qf5 {[%emt 0:00:25]} 36. Qe3 {[%emt 0:01:52]} (36. Nf2 $17 {is a better defense.}) 36... Qh3 {[%emt 0:01:28]} 37. Nc5 $2 {[%emt 0:04:38]} (37. Qe1 $17) 37... Qf1+ {[%emt 0:02:27]} 38. Kc2 {[%emt 0:00:09]} Qg2+ {[%emt 0:01:05]} 39. Kb1 {[%emt 0:00:26]} Qh1+ {[%emt 0:00:34]} 40. Kc2 {[%emt 0:00:09]} Bxc5 $1 {[%emt 0:00:58]} 41. Qxc5 {[%emt 0:31:30]} Qe4+ {[%emt 0:30:06]} 42. Kc1 {[%emt 0:00:24]} h4 $1 {[%emt 0:00:00]} 43. Qe7+ {[%emt 0:00:00]} Kb6 {[%emt 0:00:00]} 44. gxh4 {[%emt 0:00:00]} Qxf4+ {[%emt 0:00:00]} 45. Kb1 {[%emt 0:00:00]} Qxh4 {[%emt 0:00:00]} 46. Qxe6 {[%emt 0:00:00]} Qh1+ {[%emt 0:00:00]} 47. Kc2 {[%emt 0:00:00]} Qg2+ {[%emt 0:00:00]} 48. Kb1 {[%emt 0:00:00]} Qf1+ {[%emt 0:00:00]} 49. Ka2 {[%emt 0:00:00]} f5 {[%emt 0:00:00]} 50. Qe3+ {[%emt 0:00:00]} Ka6 {[%emt 0:00:00]} 51. Qd4 {[%emt 0:00:00] [#]} b5 $1 {[%emt 0:00:00]} 52. Qd7 {[%emt 0:00:00]} Qc4+ {[%emt 0:00:00]} 53. Kb1 $2 {[%emt 0:00:00] [#]} (53. Ka1 Qe4 54. Qc8+ Kb6 55. c4) 53... Qe4+ $1 $19 {[%emt 0:00:00]} 54. Kc1 {[%emt 0:00:00]} f4 $2 {[%emt 0:00:00]} (54... Kb6 $19 {...Kc5 would now be deadly.} 55. Qf7 Kc5 56. Qf8+ Kc4 57. Qg8+ Qd5) 55. Qc8+ $2 {[%emt 0:00:00][%mdl 8192]} (55. Qc7 $11) 55... Kb6 $19 {[%emt 0:00:00]} 56. Qd8+ {[%emt 0:00:00]} (56. Qf8 $19) 56... Kc5 {[%emt 0:00:00]} 57. Qf8+ {[%emt 0:00:00]} Kc4 {[%emt 0:00:00]} 58. Qf7+ {[%emt 0:00:00]} Kd3 {[%emt 0:00:00]} 59. Qd7+ {[%emt 0:00:00]} Ke2 {[%emt 0:00:00]} 60. Qg4+ {[%emt 0:05:14]} Qf3 {[%emt 0:00:00]} 61. Qd7 {[%emt 0:00:13]} Qe3+ {[%emt 0:00:00]} 62. Kc2 {[%emt 0:00:10]} Qe4+ {[%emt 0:00:00]} 63. Kc1 {[%emt 0:00:08]} f3 {[%emt 0:00:00]} 64. Qd1+ {[%emt 0:02:07]} Kf2 {[%emt 0:00:00]} 65. Qd6 {[%emt 0:00:37]} Kf1 {[%emt 0:00:00]} 66. Qh6 {[%emt 0:02:56]} f2 {[%emt 0:00:00]} 67. Qh3+ {[%emt 0:00:35]} Ke2 {[%emt 0:00:56]} 68. Qh5+ {[%emt 0:01:31]} Qf3 {[%emt 0:00:07]} 69. Qh2 {[%emt 0:00:16]} Qf5 {[%emt 0:02:20]} 70. Qg2 {[%emt 0:04:20]} Qf4+ {[%emt 0:00:29]} 71. Kc2 {[%emt 0:00:03]} Ke1 {[%emt 0:01:28]} 0-1

[Event "Mitropa Cup Women 2024"]
[Site "Apolda"]
[Date "2024.02.19"]
[Round "5.15"]
[White "Gueci, Tea"]
[Black "Mayrhuber, Nikola"]
[Result "1-0"]
[ECO "B90"]
[WhiteElo "2193"]
[BlackElo "2009"]
[Annotator "RC"]
[PlyCount "69"]
[EventDate "2024.02.15"]
[EventType "team-tourn"]
[EventCountry "GER"]
[SourceTitle "playchess.com"]
[Source "ChessBase"]
[SourceQuality "1"]
[WhiteTeam "Italy"]
[BlackTeam "Austria"]
[WhiteTeamCountry "ITA"]
[BlackTeamCountry "AUT"]
[TimeControl "40/5400+30:1800+30"]

1. e4 {[%emt 0:00:01]} c5 {[%emt 0:00:05]} 2. Nf3 {[%emt 0:00:03]} d6 {[%emt 0:00:05]} 3. d4 {[%emt 0:00:03]} cxd4 {[%emt 0:00:03]} 4. Nxd4 {[%emt 0:00:02]} Nf6 {[%emt 0:00:06]} 5. Nc3 {[%emt 0:00:03]} a6 {[%emt 0:00:05]} 6. h3 {[%emt 0:00:04]} e5 {[%emt 0:00:05]} 7. Nb3 {[%emt 0:00:04]} Be6 {[%emt 0:00:29]} 8. f4 {[%emt 0:00:11]} b5 {[%emt 0:10:51]} 9. Qf3 {[%emt 0:00:07]} Nbd7 {[%emt 0:02:53]} 10. g4 {[%emt 0:02:37]} exf4 {[%emt 0:13:33]} 11. Bxf4 {[%emt 0:02:32]} Ne5 {[%emt 0:00:11]} 12. Qg2 {[%emt 0:07:49]} Be7 {[%emt 0:09:27]} 13. O-O-O {[%emt 0:02:36]} Nfd7 {[%emt 0:07:41]} 14. Kb1 {[%emt 0:03:40]} O-O {[%emt 0:06:20]} 15. Nd4 {[%emt 0:05:04]} Rc8 {[%emt 0:07:36]} 16. Nd5 {[%emt 0:04:02]} Bxd5 {[%emt 0:02:19]} 17. exd5 {[%emt 0:00:18]} Bg5 {[%emt 0:01:16]} 18. Bg3 {[%emt 0:03:42]} Bf6 {[%emt 0:02:05]} 19. Nc6 {[%emt 0:09:35]} Qc7 {[%emt 0:12:34]} 20. g5 {[%emt 0:00:24]} Bd8 {[%emt 0:00:28]} 21. Bxe5 {[%emt 0:07:27]} Nxe5 {[%emt 0:00:16]} 22. Nxe5 {[%emt 0:02:32]} dxe5 {[%emt 0:00:03]} 23. Bd3 {[%emt 0:01:01]} g6 {[%emt 0:04:42]} 24. h4 {[%emt 0:01:21]} Re8 {[%emt 0:06:08]} 25. Be4 {[%emt 0:08:19]} Be7 {[%emt 0:00:08]} 26. h5 {[%emt 0:01:41]} Bd6 {[%emt 0:07:54]} 27. Qh3 {[%emt 0:02:26]} Re7 {[%emt 0:02:53]} 28. hxg6 {[%emt 0:07:19]} fxg6 {[%emt 0:00:01]} 29. Bxg6 {[%emt 0:00:17]} e4 {[%emt 0:01:21]} 30. Bxh7+ {[%emt 0:06:21]} Rxh7 {[%emt 0:02:43]} 31. Qe6+ {[%emt 0:00:06]} Rf7 {[%emt 0:00:44]} 32. g6 {[%emt 0:00:54]} Be5 {[%emt 0:00:45]} 33. gxf7+ {[%emt 0:00:11]} Kf8 {[%emt 0:00:05]} 34. c3 {[%emt 0:01:50]} b4 {[%emt 0:00:56]} 35. d6 {[%emt 0:01:15]} 1-0

[Event "Mitropa Cup Women 2024"]
[Site "Apolda"]
[Date "2024.02.19"]
[Round "5.16"]
[White "Deak-Sala, Emilia"]
[Black "Sala, Giulia"]
[Result "1/2-1/2"]
[ECO "B36"]
[WhiteElo "1843"]
[BlackElo "2035"]
[Annotator "NA RC"]
[PlyCount "96"]
[EventDate "2024.02.15"]
[EventType "team-tourn"]
[EventCountry "GER"]
[SourceTitle "playchess.com"]
[Source "ChessBase"]
[SourceQuality "1"]
[WhiteTeam "Austria"]
[BlackTeam "Italy"]
[WhiteTeamCountry "AUT"]
[BlackTeamCountry "ITA"]
[TimeControl "40/5400+30:1800+30"]

1. e4 {[%emt 0:00:03]} c5 {[%emt 0:00:09]} 2. Nf3 {[%emt 0:00:06]} Nc6 {[%emt 0:00:38]} 3. d4 {[%emt 0:01:15]} cxd4 {[%emt 0:00:07]} 4. Nxd4 {[%emt 0:00:03]} g6 {[%emt 0:01:25]} 5. c4 {[%emt 0:01:11]} Nf6 {[%emt 0:00:48]} 6. Nc3 {[%emt 0:00:17]} d6 {[%emt 0:00:08]} 7. Be2 {[%emt 0:00:57]} Nxd4 {[%emt 0:00:07]} 8. Qxd4 {[%emt 0:00:05]} Bg7 {[%emt 0:00:09]} 9. Be3 {[%emt 0:02:33]} O-O {[%emt 0:00:07]} 10. Qd2 {[%emt 0:00:27]} a5 {[%emt 0:00:10]} 11. O-O {[%emt 0:00:43]} a4 {[%emt 0:00:08]} 12. Rab1 {[%emt 0:01:08]} Qa5 {[%emt 0:00:49]} 13. Rfc1 {[%emt 0:04:09]} Be6 {[%emt 0:01:05]} 14. f3 {[%emt 0:10:14]} Rfc8 {[%emt 0:02:26]} 15. Nd5 {[%emt 0:02:28]} Qxd2 {[%emt 0:02:09]} 16. Bxd2 {[%emt 0:00:42]} Bxd5 {[%emt 0:00:24]} 17. cxd5 {[%emt 0:08:06]} Nd7 {[%emt 0:01:48]} 18. Rxc8+ {[%emt 0:13:31]} Rxc8 {[%emt 0:00:22]} 19. Rc1 {[%emt 0:00:11]} Rxc1+ {[%emt 0:03:56]} 20. Bxc1 {[%emt 0:00:13]} Nc5 {[%emt 0:03:58]} 21. Kf1 {[%emt 0:01:40]} h5 {[%emt 0:03:40]} 22. Bb5 {[%emt 0:12:07]} Bd4 {[%emt 0:12:29]} 23. Ke2 {[%emt 0:04:04]} Bg1 {[%emt 0:09:48]} 24. h3 {[%emt 0:04:21]} Kg7 {[%emt 0:07:24]} 25. Bg5 {[%emt 0:12:35]} f6 {[%emt 0:04:36]} 26. Bc1 {[%emt 0:00:21]} h4 {[%emt 0:07:31]} 27. Kd2 {[%emt 0:03:50]} Bd4 {[%emt 0:08:29]} 28. Kc2 {[%emt 0:00:35]} f5 {[%emt 0:09:41]} 29. exf5 {[%emt 0:01:51]} gxf5 {[%emt 0:00:02]} 30. Bg5 {[%emt 0:00:41]} Bf6 {[%emt 0:03:24]} 31. Be3 {[%emt 0:00:18]} Kf7 {[%emt 0:05:55]} 32. Bxc5 {[%emt 0:02:15]} dxc5 {[%emt 0:00:02]} 33. Bxa4 {[%emt 0:01:39]} Bd4 {[%emt 0:00:50]} 34. Bd7 {[%emt 0:00:30]} Kf6 {[%emt 0:00:46]} 35. a4 {[%emt 0:01:37]} Ke5 {[%emt 0:02:12]} 36. Be6 {[%emt 0:00:28]} f4 {[%emt 0:00:59]} 37. b3 {[%emt 0:00:11]} Bf2 {[%emt 0:01:06]} 38. Kd3 {[%emt 0:00:22]} Be1 {[%emt 0:01:07]} 39. Kc4 {[%emt 0:01:30]} b6 {[%emt 0:01:36]} 40. Kb5 {[%emt 0:06:13]} Ba5 {[%emt 0:01:29]} 41. Kc6 {[%emt 0:31:33]} Kf6 {[%emt 0:30:11]} 42. Kd7 {[%emt 0:00:16]} Bc3 {[%emt 0:00:32]} 43. Ke8 {[%emt 0:01:05]} Bb4 {[%emt 0:00:16]} 44. Kf8 {[%emt 0:00:31]} Bc3 {[%emt 0:00:22]} 45. Kg8 {[%emt 0:00:05]} Bb4 {[%emt 0:00:07]} 46. Kh7 {[%emt 0:00:11]} Bc3 {[%emt 0:00:15]} 47. Kg8 {[%emt 0:03:37]} Bb4 {[%emt 0:00:27]} 48. Kh7 {[%emt 0:00:05]} Ke5 {[%emt 0:08:21]} 1/2-1/2